[Event "*** SCC Grand Prix: Titled Tuesday Blitz"]
[Site "Chess.com"]
[Date "2020.07.07"]
[Round "1"]
[White "ammarzooqi"]
[Black "viktorskliarov"]
[Result "0-1"]
[WhiteElo "2165"]
[BlackElo "2532"]
[TimeControl "180+1"]
[EndTime "10:06:56 PDT"]
[Termination "viktorskliarov won by checkmate"]

1. e4 {[%clk 0:03:00.9]} 1... c5 {[%clk 0:02:54.4]} 2. Nc3 {[%clk 0:02:59.4]}
2... Nc6 {[%clk 0:02:51.9]} 3. f4 {[%clk 0:02:59.3]} 3... g6 {[%clk 0:02:51.2]}
4. Nf3 {[%clk 0:02:59.4]} 4... Bg7 {[%clk 0:02:51.5]} 5. g3 {[%clk 0:02:59.1]}
5... e6 {[%clk 0:02:51.4]} 6. d3 {[%clk 0:02:59]} 6... Nge7 {[%clk 0:02:51.6]}
7. Bg2 {[%clk 0:02:59]} 7... O-O {[%clk 0:02:50]} 8. O-O {[%clk 0:02:59.4]} 8...
d5 {[%clk 0:02:48.5]} 9. Qe1 {[%clk 0:02:56.2]} 9... Nd4 {[%clk 0:02:47.8]} 10.
Qf2 {[%clk 0:02:54.1]} 10... b6 {[%clk 0:02:42.2]} 11. e5 {[%clk 0:02:51.3]}
11... Nxf3+ {[%clk 0:02:35.7]} 12. Bxf3 {[%clk 0:02:49.1]} 12... Bb7 {[%clk
0:02:35.4]} 13. Bd2 {[%clk 0:02:43]} 13... Nf5 {[%clk 0:02:24.8]} 14. Rae1
{[%clk 0:02:40.9]} 14... Nd4 {[%clk 0:02:17.4]} 15. Bd1 {[%clk 0:02:34.2]} 15...
b5 {[%clk 0:02:08.9]} 16. Be3 {[%clk 0:02:29.2]} 16... Nxc2 {[%clk 0:01:41.8]}
17. Bxc2 {[%clk 0:02:01.9]} 17... d4 {[%clk 0:01:40.7]} 18. Nxb5 {[%clk
0:01:46.4]} 18... Qd5 {[%clk 0:01:18.4]} 19. Qf3 {[%clk 0:01:20.3]} 19... Qxf3
{[%clk 0:01:16.9]} 20. Rxf3 {[%clk 0:01:21.2]} 20... Bxf3 {[%clk 0:01:17]} 21.
Bc1 {[%clk 0:01:21.3]} 21... a6 {[%clk 0:01:12.5]} 22. Nd6 {[%clk 0:01:18.9]}
22... Rfd8 {[%clk 0:01:06]} 23. b3 {[%clk 0:01:14.8]} 23... Bf8 {[%clk
0:01:02.1]} 24. Nc4 {[%clk 0:01:12.3]} 24... a5 {[%clk 0:01:01.4]} 25. a4 {[%clk
0:01:10.7]} 25... Rdb8 {[%clk 0:00:57]} 26. Ba3 {[%clk 0:01:07.9]} 26... Ra6
{[%clk 0:00:47.6]} 27. Kf2 {[%clk 0:01:06.1]} 27... Bd5 {[%clk 0:00:46.9]} 28.
Nd2 {[%clk 0:01:05.8]} 28... Rab6 {[%clk 0:00:44]} 29. Rb1 {[%clk 0:01:05.4]}
29... Be7 {[%clk 0:00:43]} 30. h3 {[%clk 0:01:03]} 30... Kf8 {[%clk 0:00:41.7]}
31. g4 {[%clk 0:01:02.7]} 31... h5 {[%clk 0:00:38.8]} 32. Kg3 {[%clk 0:01:02.4]}
32... hxg4 {[%clk 0:00:38.3]} 33. hxg4 {[%clk 0:01:03.3]} 33... Ke8 {[%clk
0:00:38.6]} 34. Rh1 {[%clk 0:01:00.3]} 34... Bxh1 {[%clk 0:00:37.6]} 35. f5
{[%clk 0:00:59.3]} 35... gxf5 {[%clk 0:00:36.4]} 36. gxf5 {[%clk 0:00:59.6]}
36... Kd7 {[%clk 0:00:35.9]} 37. Kf4 {[%clk 0:00:56.9]} 37... Rg8 {[%clk
0:00:34.5]} 38. Nc4 {[%clk 0:00:55]} 38... Rb4 {[%clk 0:00:30.9]} 39. Nxa5
{[%clk 0:00:52.4]} 39... Bd5 {[%clk 0:00:30.5]} 40. Bxb4 {[%clk 0:00:48.6]}
40... cxb4 {[%clk 0:00:30]} 41. f6 {[%clk 0:00:49]} 41... Bf8 {[%clk 0:00:29.3]}
42. Bd1 {[%clk 0:00:45.4]} 42... Bh6# {[%clk 0:00:30.2]} 0-1

[Event "*** SCC Grand Prix: Titled Tuesday Blitz"]
[Site "Chess.com"]
[Date "2020.07.07"]
[Round "1"]
[White "ZiggyStardust64"]
[Black "Al_Shima"]
[Result "1-0"]
[WhiteElo "2670"]
[BlackElo "2347"]
[TimeControl "180+1"]
[EndTime "10:06:57 PDT"]
[Termination "ZiggyStardust64 won by resignation"]

1. d4 {[%clk 0:02:59.9]} 1... Nf6 {[%clk 0:02:57.3]} 2. c4 {[%clk 0:02:59.7]}
2... Nc6 {[%clk 0:02:57.3]} 3. Nc3 {[%clk 0:02:58.4]} 3... e5 {[%clk 0:02:56.9]}
4. d5 {[%clk 0:02:58.8]} 4... Ne7 {[%clk 0:02:56.9]} 5. Nf3 {[%clk 0:02:59.4]}
5... Ng6 {[%clk 0:02:56.6]} 6. h4 {[%clk 0:02:59.5]} 6... h5 {[%clk 0:02:56.5]}
7. Qc2 {[%clk 0:02:51.3]} 7... Ng4 {[%clk 0:02:46.8]} 8. Bg5 {[%clk 0:02:45.8]}
8... Be7 {[%clk 0:02:46.2]} 9. e3 {[%clk 0:02:40.6]} 9... d6 {[%clk 0:02:43.3]}
10. Bd3 {[%clk 0:02:40.1]} 10... Nf8 {[%clk 0:02:38.8]} 11. Bxe7 {[%clk
0:02:37.7]} 11... Qxe7 {[%clk 0:02:38.5]} 12. O-O-O {[%clk 0:02:35.2]} 12... g6
{[%clk 0:02:32.5]} 13. Ng5 {[%clk 0:02:31.5]} 13... f6 {[%clk 0:02:28.6]} 14.
Bxg6+ {[%clk 0:02:29.6]} 14... Nxg6 {[%clk 0:02:28.1]} 15. Qxg6+ {[%clk
0:02:30.5]} 15... Kf8 {[%clk 0:02:20.4]} 16. Nh3 {[%clk 0:01:53.7]} 16... Rh6
{[%clk 0:02:03.2]} 17. Qc2 {[%clk 0:01:53]} 17... f5 {[%clk 0:02:02.4]} 18. Ng5
{[%clk 0:01:52.4]} 18... e4 {[%clk 0:01:55.2]} 19. Rhf1 {[%clk 0:01:40]} 19...
Bd7 {[%clk 0:01:53.9]} 20. Ne2 {[%clk 0:01:39.9]} 20... b5 {[%clk 0:01:36.1]}
21. Nf4 {[%clk 0:01:30]} 21... c5 {[%clk 0:01:30.3]} 22. dxc6 {[%clk 0:01:23]}
22... Bxc6 {[%clk 0:01:30.1]} 23. Qc3 {[%clk 0:01:19.7]} 23... Ne5 {[%clk
0:01:23.5]} 24. c5 {[%clk 0:00:48]} 24... dxc5 {[%clk 0:01:05.3]} 25. Nd5 {[%clk
0:00:48.4]} 25... Bxd5 {[%clk 0:00:51.8]} 26. Rxd5 {[%clk 0:00:49.3]} 26... Nd3+
{[%clk 0:00:49.6]} 27. Kb1 {[%clk 0:00:41.8]} 27... b4 {[%clk 0:00:31.2]} 28.
Rxf5+ {[%clk 0:00:36.3]} 28... Kg8 {[%clk 0:00:29.4]} 29. Qc4+ {[%clk
0:00:34.2]} 29... Kh8 {[%clk 0:00:22.7]} 30. Nf7+ {[%clk 0:00:34.1]} 30... Kg7
{[%clk 0:00:22.2]} 31. Nxh6 {[%clk 0:00:31.1]} 31... Kxh6 {[%clk 0:00:22.6]} 32.
Qd5 {[%clk 0:00:30.2]} 32... Qe8 {[%clk 0:00:18.1]} 33. Rf6+ {[%clk 0:00:24.8]}
33... Kh7 {[%clk 0:00:15.9]} 34. Qg5 {[%clk 0:00:24.7]} 1-0

[Event "*** SCC Grand Prix: Titled Tuesday Blitz"]
[Site "Chess.com"]
[Date "2020.07.07"]
[Round "1"]
[White "GM4life"]
[Black "tsvet2005"]
[Result "0-1"]
[WhiteElo "2331"]
[BlackElo "2657"]
[TimeControl "180+1"]
[EndTime "10:06:58 PDT"]
[Termination "tsvet2005 won by resignation"]

1. e4 {[%clk 0:02:54.1]} 1... c5 {[%clk 0:03:00]} 2. Nf3 {[%clk 0:02:52]} 2...
d6 {[%clk 0:02:59.2]} 3. d4 {[%clk 0:02:52.9]} 3... cxd4 {[%clk 0:03:00.1]} 4.
Nxd4 {[%clk 0:02:53.8]} 4... Nf6 {[%clk 0:03:00.7]} 5. Nc3 {[%clk 0:02:46.1]}
5... a6 {[%clk 0:02:59.4]} 6. Be3 {[%clk 0:02:42.7]} 6... e5 {[%clk 0:02:59.2]}
7. Nb3 {[%clk 0:02:42.1]} 7... Be6 {[%clk 0:02:59]} 8. f3 {[%clk 0:02:42.7]}
8... Be7 {[%clk 0:02:59]} 9. Qd2 {[%clk 0:02:43.2]} 9... Nbd7 {[%clk 0:02:59.3]}
10. g4 {[%clk 0:02:41.5]} 10... b5 {[%clk 0:02:59]} 11. g5 {[%clk 0:02:41.2]}
11... Nh5 {[%clk 0:02:58.9]} 12. O-O-O {[%clk 0:02:41.4]} 12... Nb6 {[%clk
0:02:58.9]} 13. Na5 {[%clk 0:02:40.4]} 13... Qc7 {[%clk 0:02:56.6]} 14. Kb1
{[%clk 0:02:39.4]} 14... O-O {[%clk 0:02:56]} 15. Rg1 {[%clk 0:02:35.1]} 15...
Rab8 {[%clk 0:02:51.8]} 16. Nd5 {[%clk 0:02:26.4]} 16... Nxd5 {[%clk 0:02:51.3]}
17. exd5 {[%clk 0:02:27.3]} 17... Bd7 {[%clk 0:02:32.2]} 18. Bd3 {[%clk
0:02:25.4]} 18... b4 {[%clk 0:02:28.6]} 19. Nc6 {[%clk 0:02:19.1]} 19... Bxc6
{[%clk 0:02:28.4]} 20. dxc6 {[%clk 0:02:20]} 20... d5 {[%clk 0:02:22.5]} 21. Rg4
{[%clk 0:02:14.5]} 21... d4 {[%clk 0:02:10.2]} 22. Bf2 {[%clk 0:01:55.4]} 22...
Qxc6 {[%clk 0:02:08.7]} 23. Be4 {[%clk 0:01:53.7]} 23... Qe6 {[%clk 0:01:57.2]}
24. Rh4 {[%clk 0:01:51.8]} 24... g6 {[%clk 0:01:53.1]} 25. b3 {[%clk 0:01:39.2]}
25... Rfd8 {[%clk 0:01:29.4]} 26. Rg4 {[%clk 0:01:36.8]} 26... a5 {[%clk
0:01:25.9]} 27. Qd3 {[%clk 0:01:35.2]} 27... a4 {[%clk 0:01:23.9]} 28. h4 {[%clk
0:01:22]} 28... axb3 {[%clk 0:01:22.8]} 29. cxb3 {[%clk 0:01:20.9]} 29... Rdc8
{[%clk 0:01:17.8]} 30. Rgg1 {[%clk 0:01:11.2]} 30... Nf4 {[%clk 0:01:14.3]} 31.
Qd2 {[%clk 0:01:10.2]} 31... Nd5 {[%clk 0:00:58.8]} 32. Bxd5 {[%clk 0:01:05.6]}
32... Qxd5 {[%clk 0:00:59.7]} 33. f4 {[%clk 0:01:02.1]} 33... Rc3 {[%clk
0:00:36.6]} 34. fxe5 {[%clk 0:00:59.9]} 34... d3 {[%clk 0:00:36.6]} 35. Rg4
{[%clk 0:00:53.2]} 35... Ra8 {[%clk 0:00:24.1]} 36. Rd4 {[%clk 0:00:47]} 36...
Rxb3+ {[%clk 0:00:16.8]} 37. axb3 {[%clk 0:00:42.6]} 37... Qxb3+ {[%clk
0:00:17.7]} 38. Qb2 {[%clk 0:00:38.1]} 38... Qxd1+ {[%clk 0:00:17.7]} 39. Qc1
{[%clk 0:00:38.6]} 39... Ra1+ {[%clk 0:00:17.5]} 40. Kxa1 {[%clk 0:00:38.7]}
40... Qxc1+ {[%clk 0:00:18.4]} 41. Ka2 {[%clk 0:00:39]} 41... Qc2+ {[%clk
0:00:18.2]} 42. Ka1 {[%clk 0:00:39.2]} 42... Qxf2 {[%clk 0:00:16.8]} 43. Rxd3
{[%clk 0:00:38.6]} 43... Qf1+ {[%clk 0:00:16.5]} 44. Kb2 {[%clk 0:00:39.2]}
44... Qxd3 {[%clk 0:00:16.9]} 45. e6 {[%clk 0:00:39.6]} 45... Qc3+ {[%clk
0:00:17.2]} 46. Kb1 {[%clk 0:00:39.5]} 46... b3 {[%clk 0:00:17.6]} 47. h5 {[%clk
0:00:40]} 47... Qc2+ {[%clk 0:00:17.5]} 0-1

[Event "*** SCC Grand Prix: Titled Tuesday Blitz"]
[Site "Chess.com"]
[Date "2020.07.07"]
[Round "1"]
[White "Karateloru"]
[Black "Sacbutt"]
[Result "1-0"]
[WhiteElo "2641"]
[BlackElo "2313"]
[TimeControl "180+1"]
[EndTime "10:07:02 PDT"]
[Termination "Karateloru won by resignation"]

1. e4 {[%clk 0:03:00.9]} 1... c5 {[%clk 0:02:59.3]} 2. Nf3 {[%clk 0:03:00.3]}
2... d6 {[%clk 0:02:59.5]} 3. Bb5+ {[%clk 0:02:59.3]} 3... Bd7 {[%clk
0:02:58.1]} 4. c4 {[%clk 0:02:59.2]} 4... Nc6 {[%clk 0:02:50.4]} 5. O-O {[%clk
0:02:58]} 5... Nf6 {[%clk 0:02:49.1]} 6. Nc3 {[%clk 0:02:57.4]} 6... g6 {[%clk
0:02:47.1]} 7. d4 {[%clk 0:02:55.2]} 7... cxd4 {[%clk 0:02:45.8]} 8. Nxd4 {[%clk
0:02:56.1]} 8... Bg7 {[%clk 0:02:43.9]} 9. Be3 {[%clk 0:02:54.3]} 9... O-O
{[%clk 0:02:43.3]} 10. f3 {[%clk 0:02:53.9]} 10... a6 {[%clk 0:02:40.1]} 11. Ba4
{[%clk 0:02:49.6]} 11... Rc8 {[%clk 0:02:25.5]} 12. Bxc6 {[%clk 0:02:29]} 12...
Bxc6 {[%clk 0:02:23.3]} 13. Nxc6 {[%clk 0:02:23.6]} 13... Rxc6 {[%clk
0:02:19.8]} 14. Qd3 {[%clk 0:02:23.8]} 14... Qa5 {[%clk 0:01:54]} 15. b3 {[%clk
0:02:14.1]} 15... Re8 {[%clk 0:01:13.7]} 16. Rac1 {[%clk 0:02:12.5]} 16... Nd7
{[%clk 0:01:07.2]} 17. Bd4 {[%clk 0:02:04.5]} 17... Bxd4+ {[%clk 0:01:01.2]} 18.
Qxd4 {[%clk 0:02:04.5]} 18... Qc5 {[%clk 0:01:01.6]} 19. Rfd1 {[%clk 0:02:04.1]}
19... Qxd4+ {[%clk 0:01:00.5]} 20. Rxd4 {[%clk 0:02:05]} 20... Nc5 {[%clk
0:01:00.6]} 21. Nd5 {[%clk 0:02:04.2]} 21... Kf8 {[%clk 0:00:55.8]} 22. h4
{[%clk 0:02:02.1]} 22... Rec8 {[%clk 0:00:50.6]} 23. Kh2 {[%clk 0:01:54]} 23...
b5 {[%clk 0:00:46.3]} 24. cxb5 {[%clk 0:01:52.8]} 24... axb5 {[%clk 0:00:45.8]}
25. Rb4 {[%clk 0:01:51.1]} 25... e6 {[%clk 0:00:24.5]} 26. Ne3 {[%clk
0:01:44.4]} 26... Nd3 {[%clk 0:00:18.5]} 27. Rxc6 {[%clk 0:01:43.5]} 27... Rxc6
{[%clk 0:00:19]} 28. Rxb5 {[%clk 0:01:43.7]} 28... Nc1 {[%clk 0:00:18.6]} 29. a4
{[%clk 0:01:43.2]} 29... Rc3 {[%clk 0:00:18.3]} 30. Nc4 {[%clk 0:01:41.1]} 30...
Rxb3 {[%clk 0:00:18.2]} 31. Rxb3 {[%clk 0:01:39.4]} 31... Nxb3 {[%clk
0:00:19.1]} 32. a5 {[%clk 0:01:35.1]} 32... Nc5 {[%clk 0:00:17.3]} 33. Nxd6
{[%clk 0:01:32.9]} 33... Ke7 {[%clk 0:00:17.9]} 34. e5 {[%clk 0:01:32.5]} 34...
f6 {[%clk 0:00:17.8]} 35. Nc8+ {[%clk 0:01:29.7]} 35... Kd8 {[%clk 0:00:16.5]}
36. exf6 {[%clk 0:01:29.8]} 36... Kxc8 {[%clk 0:00:16.6]} 37. f7 {[%clk
0:01:28.9]} 37... Nd7 {[%clk 0:00:16.5]} 38. Kg3 {[%clk 0:01:29]} 38... Kb7
{[%clk 0:00:16.9]} 39. Kf4 {[%clk 0:01:26.5]} 39... h6 {[%clk 0:00:16.6]} 40.
f8=Q {[%clk 0:01:10.9]} 40... Nxf8 {[%clk 0:00:16.1]} 41. Ke5 {[%clk 0:01:11.8]}
41... g5 {[%clk 0:00:12.8]} 42. h5 {[%clk 0:01:11]} 42... Ka6 {[%clk 0:00:11.9]}
43. Kf6 {[%clk 0:01:11.2]} 43... Nd7+ {[%clk 0:00:09.8]} 44. Kg7 {[%clk
0:01:11.3]} 44... Ne5 {[%clk 0:00:08.6]} 45. Kxh6 {[%clk 0:01:11.1]} 45... g4
{[%clk 0:00:09.2]} 46. f4 {[%clk 0:01:11.4]} 46... Nd3 {[%clk 0:00:08.9]} 47.
Kg5 {[%clk 0:01:10.5]} 47... g3 {[%clk 0:00:07.1]} 48. h6 {[%clk 0:01:09.5]}
48... Ne1 {[%clk 0:00:06.9]} 49. h7 {[%clk 0:01:09.3]} 49... Nxg2 {[%clk
0:00:07.5]} 50. h8=Q {[%clk 0:01:09.1]} 50... Kxa5 {[%clk 0:00:06.1]} 51. Qa8+
{[%clk 0:01:08.8]} 51... Kb6 {[%clk 0:00:06.2]} 52. Qxg2 {[%clk 0:01:09.7]} 1-0

[Event "*** SCC Grand Prix: Titled Tuesday Blitz"]
[Site "Chess.com"]
[Date "2020.07.07"]
[Round "1"]
[White "aisha_zakirova"]
[Black "SilviusTiberius"]
[Result "1-0"]
[WhiteElo "2137"]
[BlackElo "2498"]
[TimeControl "180+1"]
[EndTime "10:07:02 PDT"]
[Termination "aisha_zakirova won by resignation"]

1. d4 {[%clk 0:03:00.9]} 1... Nf6 {[%clk 0:02:59.7]} 2. c4 {[%clk 0:03:01]} 2...
g6 {[%clk 0:02:59.7]} 3. Nc3 {[%clk 0:03:00.7]} 3... Bg7 {[%clk 0:03:00.2]} 4.
e4 {[%clk 0:03:00.6]} 4... d6 {[%clk 0:03:00.8]} 5. Be2 {[%clk 0:03:00.5]} 5...
O-O {[%clk 0:03:01.1]} 6. Bg5 {[%clk 0:03:00.6]} 6... c5 {[%clk 0:03:00.2]} 7.
d5 {[%clk 0:02:59.8]} 7... h6 {[%clk 0:03:00.3]} 8. Bh4 {[%clk 0:02:59.6]} 8...
e6 {[%clk 0:02:51.4]} 9. Nf3 {[%clk 0:02:47.9]} 9... exd5 {[%clk 0:02:50.6]} 10.
exd5 {[%clk 0:02:47.6]} 10... g5 {[%clk 0:02:43.5]} 11. Bg3 {[%clk 0:02:47.4]}
11... Nh5 {[%clk 0:02:44]} 12. O-O {[%clk 0:02:43.2]} 12... f5 {[%clk
0:02:41.2]} 13. Nd2 {[%clk 0:02:20.4]} 13... Nxg3 {[%clk 0:02:35.7]} 14. fxg3
{[%clk 0:02:17]} 14... Nd7 {[%clk 0:02:35.6]} 15. Kh1 {[%clk 0:02:16.7]} 15...
Ne5 {[%clk 0:02:35.3]} 16. Nf3 {[%clk 0:02:16.2]} 16... Ng4 {[%clk 0:02:29]} 17.
Qd2 {[%clk 0:02:16]} 17... Re8 {[%clk 0:02:29.4]} 18. h3 {[%clk 0:02:13.3]}
18... Ne3 {[%clk 0:02:27.9]} 19. Rfe1 {[%clk 0:02:13.4]} 19... Bd7 {[%clk
0:02:23.5]} 20. Bd3 {[%clk 0:02:13]} 20... f4 {[%clk 0:02:23]} 21. gxf4 {[%clk
0:02:10.4]} 21... gxf4 {[%clk 0:02:22.9]} 22. Ne4 {[%clk 0:02:09.3]} 22... Bf5
{[%clk 0:02:16.3]} 23. Nf2 {[%clk 0:01:54.4]} 23... Qf6 {[%clk 0:02:12.1]} 24.
Rac1 {[%clk 0:01:48.6]} 24... Re7 {[%clk 0:01:59.4]} 25. Bxf5 {[%clk 0:01:46.3]}
25... Qxf5 {[%clk 0:01:58]} 26. Nd3 {[%clk 0:01:46.2]} 26... Rae8 {[%clk
0:01:54.8]} 27. Rg1 {[%clk 0:01:43.7]} 27... Kh8 {[%clk 0:01:35.7]} 28. Nh4
{[%clk 0:01:39.8]} 28... Qg5 {[%clk 0:01:23]} 29. Nxf4 {[%clk 0:01:37.9]} 29...
Re4 {[%clk 0:01:15.1]} 30. Nhg6+ {[%clk 0:01:27.5]} 30... Kh7 {[%clk 0:01:11.3]}
31. Qf2 {[%clk 0:01:10.5]} 31... Bd4 {[%clk 0:01:04.1]} 32. Qf3 {[%clk
0:01:08.1]} 32... Nf5 {[%clk 0:00:59.5]} 33. Kh2 {[%clk 0:00:47.1]} 33... Bxg1+
{[%clk 0:00:42.5]} 34. Rxg1 {[%clk 0:00:46.4]} 34... Re3 {[%clk 0:00:29.2]} 35.
Qf2 {[%clk 0:00:40.2]} 35... R8e4 {[%clk 0:00:21.7]} 36. Ne6 {[%clk 0:00:38.6]}
36... Rxe6 {[%clk 0:00:14.8]} 37. Nf8+ {[%clk 0:00:38.1]} 37... Kh8 {[%clk
0:00:12.1]} 38. Nxe6 {[%clk 0:00:38.4]} 38... Re5 {[%clk 0:00:05.8]} 39. Nxg5
{[%clk 0:00:37.9]} 39... hxg5 {[%clk 0:00:05.7]} 1-0

[Event "*** SCC Grand Prix: Titled Tuesday Blitz"]
[Site "Chess.com"]
[Date "2020.07.07"]
[Round "1"]
[White "davidkalashian"]
[Black "Quattroporte300"]
[Result "1-0"]
[WhiteElo "2623"]
[BlackElo "2300"]
[TimeControl "180+1"]
[EndTime "10:07:03 PDT"]
[Termination "davidkalashian won by resignation"]

1. d4 {[%clk 0:02:56.6]} 1... Nf6 {[%clk 0:02:58.9]} 2. c4 {[%clk 0:02:55.4]}
2... e6 {[%clk 0:02:58.9]} 3. Nf3 {[%clk 0:02:54.1]} 3... d5 {[%clk 0:02:58.1]}
4. Nc3 {[%clk 0:02:53.3]} 4... c6 {[%clk 0:02:57.5]} 5. Qd3 {[%clk 0:02:52.5]}
5... dxc4 {[%clk 0:02:56.9]} 6. Qxc4 {[%clk 0:02:53.4]} 6... b5 {[%clk 0:02:57]}
7. Qb3 {[%clk 0:02:49.4]} 7... a6 {[%clk 0:02:56.6]} 8. Bg5 {[%clk 0:02:46.7]}
8... Nbd7 {[%clk 0:02:53.8]} 9. e4 {[%clk 0:02:45.3]} 9... h6 {[%clk 0:02:51.9]}
10. Bxf6 {[%clk 0:02:40.2]} 10... Nxf6 {[%clk 0:02:47.1]} 11. e5 {[%clk
0:02:39.5]} 11... Nd5 {[%clk 0:02:46]} 12. Nxd5 {[%clk 0:02:39.8]} 12... Qxd5
{[%clk 0:02:40.7]} 13. Qxd5 {[%clk 0:02:39.1]} 13... Bb4+ {[%clk 0:02:27.7]} 14.
Nd2 {[%clk 0:02:26.2]} 14... cxd5 {[%clk 0:02:20.6]} 15. Bd3 {[%clk 0:02:25.7]}
15... f6 {[%clk 0:02:11.4]} 16. f4 {[%clk 0:02:16.1]} 16... fxe5 {[%clk
0:02:09.9]} 17. fxe5 {[%clk 0:02:17]} 17... O-O {[%clk 0:02:06.2]} 18. Rf1
{[%clk 0:02:08.2]} 18... Bd7 {[%clk 0:02:04.2]} 19. Ke2 {[%clk 0:02:01.6]} 19...
Rac8 {[%clk 0:02:00.1]} 20. Nb3 {[%clk 0:01:54.9]} 20... Be8 {[%clk 0:01:51]}
21. Rxf8+ {[%clk 0:01:53.2]} 21... Kxf8 {[%clk 0:01:50.5]} 22. h3 {[%clk
0:01:46.6]} 22... g5 {[%clk 0:01:42.2]} 23. a3 {[%clk 0:01:40.4]} 23... Be7
{[%clk 0:01:40.9]} 24. Nc5 {[%clk 0:01:33.2]} 24... Bxc5 {[%clk 0:01:32.1]} 25.
Rc1 {[%clk 0:01:32.1]} 25... Ke7 {[%clk 0:01:26.8]} 26. Rxc5 {[%clk 0:01:27.4]}
26... Rxc5 {[%clk 0:00:48.7]} 27. dxc5 {[%clk 0:01:28.3]} 27... Kd7 {[%clk
0:00:48]} 28. Ke3 {[%clk 0:01:24.2]} 28... Kc6 {[%clk 0:00:46.7]} 29. b4 {[%clk
0:01:23.6]} 29... a5 {[%clk 0:00:42.9]} 30. Kd4 {[%clk 0:01:20.3]} 30... axb4
{[%clk 0:00:42.9]} 31. axb4 {[%clk 0:01:21]} 31... Bh5 {[%clk 0:00:41.2]} 32.
Bh7 {[%clk 0:01:17.2]} 32... Be2 {[%clk 0:00:35.3]} 33. g3 {[%clk 0:01:14.7]}
33... Bf1 {[%clk 0:00:32.3]} 34. h4 {[%clk 0:01:13.8]} 34... gxh4 {[%clk
0:00:30.6]} 35. gxh4 {[%clk 0:01:14.7]} 35... Bh3 {[%clk 0:00:29.9]} 36. Bg6
{[%clk 0:01:12.9]} 36... Kd7 {[%clk 0:00:27.4]} 37. Bd3 {[%clk 0:01:12.2]} 37...
Kc6 {[%clk 0:00:27.5]} 38. Ke3 {[%clk 0:01:11.5]} 38... Bg4 {[%clk 0:00:26.2]}
39. Kf4 {[%clk 0:01:11.1]} 39... Bh5 {[%clk 0:00:25.7]} 40. Bf1 {[%clk
0:01:10.6]} 40... Kd7 {[%clk 0:00:22]} 41. Bxb5+ {[%clk 0:01:08.7]} 41... Kc7
{[%clk 0:00:19.5]} 42. Bd3 {[%clk 0:01:09.1]} 42... Kd7 {[%clk 0:00:15.5]} 43.
b5 {[%clk 0:01:08.1]} 43... Kc7 {[%clk 0:00:16]} 44. Ke3 {[%clk 0:01:04.4]}
44... Be8 {[%clk 0:00:15.3]} 45. Kd4 {[%clk 0:01:03.6]} 45... Bd7 {[%clk
0:00:14.1]} 46. c6 {[%clk 0:01:02.8]} 46... Be8 {[%clk 0:00:10.9]} 47. Kc5
{[%clk 0:01:02.9]} 47... Kc8 {[%clk 0:00:06.1]} 48. b6 {[%clk 0:01:02.2]} 48...
Kb8 {[%clk 0:00:05]} 49. c7+ {[%clk 0:01:01.7]} 49... Kb7 {[%clk 0:00:04.8]} 50.
Ba6+ {[%clk 0:01:01.2]} 1-0

[Event "*** SCC Grand Prix: Titled Tuesday Blitz"]
[Site "Chess.com"]
[Date "2020.07.07"]
[Round "1"]
[White "KuzubovYuriy"]
[Black "Crazy_girl99"]
[Result "1-0"]
[WhiteElo "2857"]
[BlackElo "2433"]
[TimeControl "180+1"]
[EndTime "10:07:06 PDT"]
[Termination "KuzubovYuriy won by resignation"]

1. d4 {[%clk 0:03:00.9]} 1... d5 {[%clk 0:02:59.1]} 2. c4 {[%clk 0:03:00.2]}
2... e6 {[%clk 0:02:59.1]} 3. Nc3 {[%clk 0:02:58.4]} 3... Nf6 {[%clk 0:02:56.4]}
4. cxd5 {[%clk 0:02:57.9]} 4... exd5 {[%clk 0:02:56]} 5. Bg5 {[%clk 0:02:57.7]}
5... Be7 {[%clk 0:02:53.4]} 6. e3 {[%clk 0:02:55.8]} 6... O-O {[%clk 0:02:52.4]}
7. Bd3 {[%clk 0:02:54.8]} 7... c6 {[%clk 0:02:50.7]} 8. Qc2 {[%clk 0:02:53.8]}
8... Nbd7 {[%clk 0:02:50.5]} 9. Nge2 {[%clk 0:02:53]} 9... Re8 {[%clk
0:02:50.2]} 10. h3 {[%clk 0:02:40.9]} 10... Nf8 {[%clk 0:02:49.3]} 11. O-O
{[%clk 0:02:36]} 11... Ng6 {[%clk 0:02:48.2]} 12. Rab1 {[%clk 0:02:28.9]} 12...
a5 {[%clk 0:02:32.8]} 13. a3 {[%clk 0:02:28]} 13... Be6 {[%clk 0:02:05]} 14. b4
{[%clk 0:02:13.2]} 14... axb4 {[%clk 0:02:04.2]} 15. axb4 {[%clk 0:02:13.1]}
15... Nd7 {[%clk 0:02:02.4]} 16. Bxe7 {[%clk 0:02:09.3]} 16... Qxe7 {[%clk
0:02:02.6]} 17. b5 {[%clk 0:02:01.6]} 17... c5 {[%clk 0:01:57]} 18. dxc5 {[%clk
0:01:50.9]} 18... Nxc5 {[%clk 0:01:55.3]} 19. Bxg6 {[%clk 0:01:25.1]} 19... hxg6
{[%clk 0:01:52.3]} 20. Rbd1 {[%clk 0:01:20.4]} 20... Red8 {[%clk 0:01:38.8]} 21.
Nf4 {[%clk 0:01:15]} 21... Rac8 {[%clk 0:00:49.8]} 22. Ncxd5 {[%clk 0:01:10.7]}
22... Bxd5 {[%clk 0:00:43]} 23. Nxd5 {[%clk 0:01:10]} 23... Qe8 {[%clk
0:00:30.6]} 24. Qb2 {[%clk 0:00:58.1]} 24... Qe6 {[%clk 0:00:20.3]} 25. Nf4
{[%clk 0:00:54.3]} 25... Qe4 {[%clk 0:00:17.7]} 26. b6 {[%clk 0:00:27]} 26... g5
{[%clk 0:00:16.5]} 27. Ne2 {[%clk 0:00:25.1]} 27... Nd3 {[%clk 0:00:15.6]} 28.
Qb3 {[%clk 0:00:21.5]} 28... Nc5 {[%clk 0:00:14.2]} 29. Qb1 {[%clk 0:00:16]}
29... Qc4 {[%clk 0:00:13.6]} 30. Nd4 {[%clk 0:00:14.5]} 30... Ne6 {[%clk
0:00:12.6]} 31. Rc1 {[%clk 0:00:12.8]} 31... Qd5 {[%clk 0:00:12]} 32. Nxe6
{[%clk 0:00:10.6]} 32... Qxe6 {[%clk 0:00:11.8]} 33. Rxc8 {[%clk 0:00:09.8]}
33... Rxc8 {[%clk 0:00:12.7]} 34. Rd1 {[%clk 0:00:09.8]} 34... Rc6 {[%clk
0:00:12.3]} 35. Rd8+ {[%clk 0:00:09.5]} 1-0